fUST/lending_fUST_20250423
["ID","MTS","AMOUNT","RATE_DAILY","PERIOD"]
[358668245,1745355043027,-500.0,0.00024109,2]
[358668246,1745355043037,-500.0,0.00024109,2]
[358668247,1745355043047,-600.0,0.00024299,2]
[358668248,1745355043057,-500.0,0.00024383,2]
[358668250,1745355043067,-522.85,0.00024383,2]
[358668251,1745355043077,-500.0,0.00024383,2]
[358668252,1745355043086,-500.0,0.00024383,2]
[358668253,1745355043096,-500.0,0.00024383,2]
[358668254,1745355043105,-160.0,0.00024462,2]
[358668255,1745355043115,-12565.32410885,0.00024462,2]
[358668256,1745355043125,-160.0,0.00024462,2]
[358668257,1745355043134,-26668.53314008,0.00024472,2]
[358668258,1745355043144,-42615.7056626,0.00024552,2]
[358668259,1745355043153,-1124.60902004,0.00024572,2]
[358668260,1745355043163,-32747.4361222,0.00024651,2]
[358668261,1745355043174,-500.0,0.00024657,2]
[358668262,1745355043183,-522.85,0.00024657,2]
[358668263,1745355043194,-500.0,0.00024657,2]
[358668264,1745355043204,-500.0,0.00024657,2]
[358668265,1745355043215,-500.0,0.00024657,2]
[358668266,1745355043226,-500.0,0.00024658,2]
[358668267,1745355043237,-500.0,0.00024658,2]
[358668268,1745355043247,-500.0,0.00024658,2]
[358668269,1745355043258,-630.25139699,0.00024658,2]
[358668270,1745355043269,-500.0,0.00024658,2]
[358668271,1745355043280,-500.0,0.00024658,2]
[358668272,1745355043290,-500.0,0.00024658,2]
[358668273,1745355043300,-500.0,0.00024658,2]
[358668274,1745355043311,-500.0,0.00024658,2]
[358668275,1745355043322,-500.0,0.00024658,2]
[358668276,1745355043332,-422.26257289,0.00024658,2]
[358668277,1745355043342,-500.0,0.00024658,2]
[358668278,1745355043352,-500.0,0.00024658,2]
[358668279,1745355043362,-500.0,0.00024658,2]
[358668280,1745355043372,-500.0,0.00024658,2]
[358668281,1745355043383,-500.0,0.00024658,2]
[358668282,1745355043395,-20716.618675,0.000248,2]
[358668283,1745355043405,-587.0,0.00024808,2]
[358668284,1745355043419,-587.0,0.00024808,2]
[358668285,1745355043429,-151.0,0.000249,7]
[358668286,1745355043439,-388.542287,0.000249,7]
[358668287,1745355043451,-388.542287,0.000249,7]
[358668288,1745355043462,-151.0,0.000249,7]
[358668289,1745355043471,-142920.46840508,0.000249,2]
[358668290,1745355043491,-960.65650689,0.000249,2]
[358668291,1745355043554,-500.0,0.00021917,2]
[358668292,1745355043565,-500.0,0.00021917,2]
[358668293,1745355043575,-500.0,0.00021917,2]
[358668294,1745355043586,-420.73667954,0.00024457,2]
[358668295,1745355043595,-155.71352466,0.000249,2]
[358668296,1745355043609,-1426.6356,0.000249,2]
[358668298,1745355043621,-810.27166094,0.000249,2]
[358668299,1745355043633,-13474.371951,0.000249,2]
[358668300,1745355043853,-0.00745377,0.000249,2]
[358668301,1745355043866,-1365.28998582,0.000249,2]
[358668302,1745355043878,-120005.96603699,0.000249,2]
[358668303,1745355043890,-6627.79749485,0.000249,2]
[358668304,1745355043900,-151.0,0.000249,2]
[358668305,1745355043911,-151.0,0.000249,7]
[358668306,1745355043921,-151.0,0.000249,7]
[358668307,1745355043930,-151.0,0.000249,7]
[358668308,1745355043940,-151.0,0.000249,7]
[358668309,1745355043950,-522.85,0.00024931,2]
[358668310,1745355043961,-217.92075982,0.00024931,2]
[358668311,1745355043998,-160.0,0.00024457,2]
[358668312,1745355044009,-282.07924018,0.00024931,2]
[358668313,1745355044018,-107.7814373,0.00025205,14]
[358668314,1745355044036,-468.942,0.00025205,14]
[358668315,1745355044049,-2084.0765627,0.00025205,14]
[358668316,1745355044060,-6.37139616,0.00025205,14]
[358668317,1745355044074,-1644.67106572,0.00025205,14]
[358668318,1745355044087,-1009.75753812,0.00025205,14]
[358668319,1745355044099,-2660.8,0.00025205,14]
[358668320,1745355044108,-2660.8,0.00025205,14]
[358668321,1745355044119,-2660.8,0.00025205,14]
[358668322,1745355044130,-2660.8,0.00025205,14]
[358668323,1745355044141,-339.65431153,0.00025205,14]
[358668324,1745355044154,-2321.04568847,0.00025205,14]
[358668325,1745355044164,-422.86412604,0.00025205,2]
[358668326,1745355044177,-99.98587396,0.00025205,2]
[358668327,1745355044187,-500.0,0.00025205,2]
[358668328,1745355044198,-117.6395863,0.00025479,2]
[358668342,1745355046187,-405.2104137,0.00025479,2]
[358668343,1745355046196,-500.0,0.00025479,2]
[358668344,1745355046206,-522.85,0.00025753,2]
[358668345,1745355046218,-208.15945246,0.00025753,2]
[358668346,1745355046227,-522.85,0.00026027,2]
[358668347,1745355046236,-522.85,0.00026301,2]
[358668348,1745355046246,-153.0,0.00026507,2]
[358668349,1745355046255,-153.0,0.00026507,2]
[358668350,1745355046264,-153.0,0.00026507,2]
[358668351,1745355046273,-153.0,0.00026509,2]
[358668352,1745355046282,-153.0,0.00026509,2]
[358668353,1745355046291,-153.0,0.00026509,2]
[358668354,1745355046301,-153.0,0.00026509,2]
[358668355,1745355046310,-153.0,0.00026509,2]
[358668356,1745355046319,-153.0,0.00026518,2]
[358668357,1745355046329,-153.0,0.00026518,2]
[358668358,1745355046338,-153.0,0.0002652,2]
[358668359,1745355046347,-153.0,0.0002652,2]
[358668360,1745355046357,-153.0,0.0002652,2]
[358668361,1745355046366,-153.0,0.0002652,2]
[358668362,1745355046376,-153.0,0.0002652,2]
[358668363,1745355046385,-522.85,0.00026575,2]
[358668364,1745355046394,-522.85,0.00026849,2]
[358668365,1745355046404,-308.0,0.00026987,2]
[358668366,1745355046417,-407.0,0.00026987,2]
[358668367,1745355046427,-522.85,0.00027123,2]
[358668368,1745355046436,-180.08283811,0.00027364,2]
[358668369,1745355046446,-522.85,0.00027397,2]
[358668370,1745355046456,-500.0,0.00027397,5]
[358668371,1745355046466,-151.0,0.000274,2]
[358668372,1745355046475,-544.0,0.00027494,2]
[358668373,1745355046487,-707.0,0.00027494,2]
[358668374,1745355046499,-2248.0,0.00027494,2]
[358668375,1745355046509,-193.695,0.00027494,2]
[358668376,1745355046519,-403.0,0.00027494,2]
[358668377,1745355046652,-197.598,0.00027494,2]
[358668378,1745355046662,-522.85,0.00027671,2]
[358668379,1745355046672,-1000.0,0.00027924,5]
[358668380,1745355046682,-1000.0,0.00027924,5]
[358668381,1745355046693,-977.02132445,0.00027924,5]
[358668382,1745355046703,-522.85,0.00027945,2]
[358668383,1745355046713,-160.0,0.00028,3]
[358668384,1745355046723,-500.0,0.00028044,2]
[358668385,1745355046732,-500.0,0.00028044,2]
[358668386,1745355046742,-248.88213999,0.00028044,2]
[358668387,1745355046752,-500.0,0.00028044,2]
[358668388,1745355046762,-500.0,0.00028044,2]
[358668389,1745355046771,-500.0,0.00028044,2]
[358668390,1745355046781,-500.0,0.00028069,5]
[358668391,1745355046791,-241.1385762,0.00028069,5]
[358668392,1745355046801,-1000.0,0.00028134,5]
[358668393,1745355046810,-500.0,0.00028134,5]
[358668394,1745355046821,-1000.0,0.00028134,5]
[358668395,1745355046830,-1000.0,0.00028134,2]
[358668396,1745355046839,-1000.0,0.00028134,5]
[358668397,1745355046848,-500.0,0.00028134,5]
[358668398,1745355046857,-1000.0,0.00028134,5]
[358668399,1745355046867,-568.00610306,0.00028134,5]
[358668400,1745355046877,-500.0,0.00028134,5]
[358668401,1745355046887,-1000.0,0.00028134,5]
[358668402,1745355046896,-530.92315292,0.00028134,5]
[358668403,1745355046906,-917.85433263,0.00028134,5]
[358668404,1745355046916,-1000.0,0.00028144,2]
[358668405,1745355046925,-1000.0,0.00028157,4]
[358668406,1745355046935,-1000.0,0.00028157,5]
[358668407,1745355046944,-408.49353054,0.00028219,2]
[358668408,1745355046957,-114.39744283,0.00028219,2]
[358668409,1745355046967,-475.127,0.0002844,19]
[358668410,1745355046976,-977.29921279,0.00028495,5]
[358668435,1745355302560,419.81,0.0002,2]
[358668436,1745355348117,800.0,0.00019178,2]
[358668452,1745356173448,988.72145175,0.000189,2]
[358668473,1745356232161,-2638.83504823,0.00020363,2]
[358668474,1745356232172,-529.002145,0.00020463,2]
[358668475,1745356232181,-571.18837782,0.0002067,2]
[358668476,1745356232190,-300.0,0.00020998,2]
[358668477,1745356232200,-300.0,0.00020998,2]
[358668478,1745356232209,-10000.0,0.00020999,2]
[358668479,1745356232219,-476.943742,0.00020999,2]
[358668480,1745356232228,-184.4899656,0.00021167,2]
[358668481,1745356232238,-1996.3172822,0.00021167,2]
[358668482,1745356232248,-945.46004796,0.00021452,2]
[358668483,1745356232257,-11443.79771878,0.00021463,2]
[358668484,1745356232269,-15480.0075145,0.00021463,2]
[358668485,1745356232279,-26923.80523324,0.00021552,2]
[358668486,1745356232288,-8548.89081164,0.00021552,2]
[358668487,1745356232297,-151.0,0.00021558,2]
[358668488,1745356232307,-500.0,0.00021562,2]
[358668489,1745356232316,-173.45903726,0.00021562,2]
[358668491,1745356232326,-500.0,0.00021562,2]
[358668493,1745356232335,-500.0,0.00021562,2]
[358668494,1745356232345,-500.0,0.00021562,2]
[358668495,1745356232354,-500.0,0.00021562,2]
[358668496,1745356232364,-241.27925012,0.00021562,2]
[358668497,1745356232373,-500.0,0.00021562,2]
[358668498,1745356232382,-500.0,0.00021562,2]
[358668499,1745356232391,-500.0,0.00021562,2]
[358668500,1745356232401,-500.0,0.00021562,2]
[358668501,1745356232410,-500.0,0.00021562,2]
[358668502,1745356232420,-500.0,0.00021562,2]
[358668503,1745356232430,-500.0,0.00021562,2]
[358668504,1745356232451,-500.0,0.00021562,2]
[358668505,1745356232462,-500.0,0.00021562,2]
[358668506,1745356232472,-500.0,0.00021562,2]
[358668507,1745356232482,-500.0,0.00021562,2]
[358668508,1745356232492,-500.0,0.00021562,2]
[358668509,1745356232502,-500.0,0.00021562,2]
[358668511,1745356232511,-500.0,0.00021562,2]
[358668512,1745356232522,-500.0,0.00021562,2]
[358668514,1745356232531,-500.0,0.00021562,2]
[358668516,1745356232542,-500.0,0.00021562,2]
[358668518,1745356232552,-500.0,0.00021562,2]
[358668520,1745356232562,-500.0,0.00021562,2]
[358668522,1745356232571,-500.0,0.00021562,2]
[358668523,1745356232581,-500.0,0.00021562,2]
[358668525,1745356232591,-500.0,0.00021562,2]
[358668527,1745356232601,-500.0,0.00021562,2]
[358668529,1745356232611,-500.0,0.00021562,2]
[358668531,1745356232621,-500.0,0.00021562,2]
[358668532,1745356232631,-500.0,0.00021562,2]
[358668533,1745356232641,-500.0,0.00021562,2]
[358668535,1745356232652,-500.0,0.00021562,2]
[358668537,1745356232662,-500.0,0.00021562,2]
[358668539,1745356232672,-500.0,0.00021562,2]
[358668541,1745356232682,-500.0,0.00021562,2]
[358668543,1745356232693,-500.0,0.00021562,2]
[358668544,1745356232703,-500.0,0.00021562,2]
[358668545,1745356232713,-500.0,0.00021562,2]
[358668547,1745356232723,-500.0,0.00021562,2]
[358668548,1745356232733,-410.55345379,0.00021562,2]
[358668550,1745356232743,-500.0,0.00021562,2]
[358668551,1745356232754,-500.0,0.00021562,2]
[358668552,1745356232765,-500.0,0.00021562,2]
[358668553,1745356232777,-3073.98669218,0.00021562,2]
[358668554,1745356232787,-3073.98669218,0.00021562,2]
[358668555,1745356232797,-3073.98669218,0.00021562,2]
[358668556,1745356232807,-2906.33840868,0.00021562,2]
[358668557,1745356232826,-167.6482835,0.00021562,2]
[358668558,1745356232983,-319.66526738,0.00021562,2]
[358668559,1745356233041,-2754.3214248,0.00021562,2]
[358668560,1745356233051,-3073.98669218,0.00021562,2]
[358668561,1745356233061,-3073.98669218,0.00021562,2]
[358668562,1745356233071,-3073.98669218,0.00021562,2]
[358668563,1745356233081,-3073.98669218,0.00021562,2]
[358668564,1745356233091,-3073.98669218,0.00021562,2]
[358668565,1745356233101,-3073.98669218,0.00021562,2]
[358668566,1745356233110,-3073.98669218,0.00021562,2]
[358668567,1745356233119,-3073.98669218,0.00021562,2]
[358668568,1745356233130,-3073.98669218,0.00021562,2]
[358668569,1745356233140,-3073.98669218,0.00021562,2]
[358668570,1745356233150,-3073.98669218,0.00021562,2]
[358668571,1745356233160,-3073.98669218,0.00021562,2]
[358668572,1745356233170,-3073.98669218,0.00021562,2]
[358668573,1745356233179,-3073.98669218,0.00021562,2]
[358668574,1745356233190,-3073.98669218,0.00021562,2]
[358668575,1745356233200,-3073.98669218,0.00021562,2]
[358668576,1745356233210,-3073.98669218,0.00021562,2]
[358668577,1745356233219,-3073.98669218,0.00021562,2]
[358668578,1745356233229,-1049.93815862,0.00021562,2]
[358668589,1745356238380,-197.2175829,0.00021561,2]
[358668591,1745356238392,-500.0,0.00021561,2]
[358668593,1745356238403,-500.0,0.00021561,2]
[358668595,1745356238414,-631.80911887,0.00021561,2]
[358668597,1745356238425,-250.96879874,0.00021561,2]
[358668599,1745356238437,-382.15622571,0.00021561,2]
[358668601,1745356238450,-370000.0,0.00021571,2]
[358668603,1745356238462,-500.0,0.00021573,2]
[358668605,1745356238473,-602.79187796,0.00021573,2]
[358668607,1745356238485,-500.7034327,0.00021573,2]
[358668609,1745356238496,-455.78386905,0.00021573,2]
[358668611,1745356238508,-500.0,0.00021573,2]
[358668613,1745356238520,-500.0,0.00021573,2]
[358668615,1745356238532,-324.56454057,0.00021573,2]
[358668617,1745356238543,-500.0,0.00021573,2]
[358668619,1745356238556,-500.0,0.00021573,2]
[358668621,1745356238567,-500.0,0.00021573,2]
[358668623,1745356238580,-500.0,0.00021573,2]
[358668625,1745356238591,-500.0,0.00021573,2]
[358668627,1745356238603,-500.0,0.00021573,2]
[358668629,1745356238613,-500.0,0.00021573,2]
[358668631,1745356238624,-500.0,0.00021573,2]
[358668633,1745356238634,-500.0,0.00021573,2]
[358668635,1745356238644,-500.0,0.00021573,2]
[358668637,1745356238654,-500.0,0.00021573,2]
[358668639,1745356238664,-500.0,0.00021573,2]
[358668641,1745356238674,-500.0,0.00021573,2]
[358668643,1745356238684,-500.0,0.00021573,2]
[358668645,1745356238695,-156.587,0.00021613,2]
[358668647,1745356238707,-26923.80523324,0.0002164,2]
[358668649,1745356238717,-162.380719,0.00021668,2]
[358668651,1745356238727,-26923.80523324,0.00021729,2]
[358668653,1745356238737,-26923.80523324,0.00021817,2]
[358668655,1745356238747,-500.0,0.00021917,2]
[358668657,1745356238757,-248.30955418,0.00021917,2]
[358668659,1745356238768,-500.0,0.00021917,2]
[358668661,1745356238780,-500.0,0.00021917,2]
[358668663,1745356238791,-500.0,0.00021917,2]
[358668665,1745356238802,-500.0,0.00021917,2]
[358668667,1745356238812,-500.0,0.00021917,2]
[358668668,1745356238823,-500.0,0.00021917,2]
[358668669,1745356238834,-502.86542709,0.00021917,2]
[358668670,1745356238845,-500.0,0.00021917,2]
[358668671,1745356238855,-500.0,0.00021917,2]
[358668672,1745356238866,-500.0,0.00021917,2]
[358668673,1745356238876,-500.0,0.00021917,2]
[358668674,1745356238887,-500.0,0.00021917,2]
[358668675,1745356238897,-500.0,0.00021917,2]
[358668676,1745356238907,-500.0,0.00021917,2]
[358668677,1745356238917,-500.0,0.00021917,2]
[358668678,1745356238927,-500.9550273,0.00021917,2]
[358668679,1745356238937,-500.0,0.00021917,2]
[358668680,1745356238950,-500.0,0.00021917,2]
[358668681,1745356238960,-500.0,0.00021917,2]
[358668682,1745356238970,-500.0,0.00021917,2]
[358668683,1745356238980,-500.0,0.00021917,2]
[358668684,1745356238990,-500.0,0.00021917,2]
[358668685,1745356239001,-500.0,0.00021917,2]
[358668686,1745356239012,-500.0,0.00021917,2]
[358668687,1745356239022,-500.0,0.00021917,2]
[358668688,1745356239032,-500.0,0.00021917,2]
[358668689,1745356239041,-500.0,0.00021917,2]
[358668691,1745356239051,-500.0,0.00021917,2]
[358668693,1745356239060,-500.0,0.00021917,2]
[358668695,1745356239070,-500.0,0.00021917,2]
[358668697,1745356239079,-500.0,0.00021917,2]
[358668699,1745356239089,-500.0,0.00021917,2]
[358668701,1745356239099,-500.0,0.00021917,2]
[358668703,1745356239109,-500.0,0.00021917,2]
[358668705,1745356239119,-500.0,0.00021917,2]
[358668707,1745356239129,-500.0,0.00021917,2]
[358668709,1745356239138,-500.0,0.00021917,2]
[358668711,1745356239149,-500.0,0.00021917,2]
[358668713,1745356239159,-500.0,0.00021917,2]
[358668715,1745356239168,-500.0,0.00021917,2]
[358668717,1745356239178,-500.0,0.00021917,2]
[358668719,1745356239188,-500.0,0.00021917,2]
[358668721,1745356239199,-500.0,0.00021917,2]
[358668723,1745356239210,-500.0,0.00021917,2]
[358668725,1745356239220,-500.0,0.00021917,2]
[358668727,1745356239230,-500.0,0.00021917,2]
[358668729,1745356239241,-500.0,0.00021917,2]
[358668731,1745356239251,-500.0,0.00021917,2]
[358668734,1745356239260,-500.0,0.00021917,2]
[358668736,1745356239270,-500.0,0.00021917,2]
[358668738,1745356239279,-500.0,0.00021917,2]
[358668740,1745356239290,-500.0,0.00021917,2]
[358668742,1745356239299,-500.0,0.00021917,2]
[358668744,1745356239309,-500.0,0.00021917,2]
[358668746,1745356239322,-500.0,0.00021917,2]
[358668748,1745356239332,-500.0,0.00021917,2]
[358668750,1745356239342,-500.0,0.00021917,2]
[358668765,1745356239477,-500.0,0.00021917,2]
[358668768,1745356239492,-500.0,0.00021917,2]
[358668770,1745356239502,-500.0,0.00021917,2]
[358668771,1745356239512,-500.0,0.00021917,2]
[358668773,1745356239522,-500.0,0.00021917,2]
[358668774,1745356239532,-502.05179764,0.00021917,2]
[358668775,1745356239542,-500.0,0.00021917,2]
[358668776,1745356239552,-500.0,0.00021917,2]
[358668777,1745356239562,-502.02585762,0.00021917,2]
[358668778,1745356239572,-494.11801047,0.00021917,2]
[358668779,1745356239582,-500.0,0.00021917,2]
[358668780,1745356239592,-501.0494306,0.00021917,2]
[358668781,1745356239603,-503.86041588,0.00021917,2]
[358668782,1745356239613,-500.0,0.00021917,2]
[358668783,1745356239623,-500.0,0.00021917,2]
[358668784,1745356239633,-500.0,0.00021917,2]
[358668785,1745356239643,-500.0,0.00021917,2]
[358668786,1745356239653,-501.05553608,0.00021917,2]
[358668787,1745356239663,-502.0116866,0.00021917,2]
[358668788,1745356239672,-500.0,0.00021917,2]
[358668789,1745356239682,-500.0,0.00021917,2]
[358668790,1745356239693,-500.0,0.00021917,2]
[358668791,1745356239704,-500.0,0.00021917,2]
[358668792,1745356239714,-501.8097811,0.00021917,2]
[358668793,1745356239725,-500.0,0.00021917,2]
[358668794,1745356239735,-500.0,0.00021917,2]
[358668795,1745356239746,-500.0,0.00021917,2]
[358668796,1745356239756,-500.0,0.00021917,2]
[358668797,1745356239766,-501.72949029,0.00021917,2]
[358668798,1745356239778,-500.0,0.00021917,2]
[358668799,1745356239790,-503.57994469,0.00021917,2]
[358668800,1745356239800,-478.85522109,0.00021917,2]
[358668801,1745356239810,-500.0,0.00021917,2]
[358668802,1745356239820,-500.0,0.00021917,2]
[358668803,1745356239830,-500.0,0.00021917,2]
[358668804,1745356239840,-500.0,0.00021917,2]
[358668805,1745356239851,-500.0,0.00021917,2]
[358668806,1745356239862,-500.0,0.00021917,2]
[358668807,1745356239872,-500.0,0.00021917,2]
[358668808,1745356239882,-500.0,0.00021917,2]
[358668809,1745356239892,-500.0,0.00021917,2]
[358668810,1745356239902,-637.98932136,0.00021917,2]
[358668811,1745356239912,-1000.0,0.00021917,2]
[358668812,1745356239922,-500.0,0.00021917,2]
[358668813,1745356239932,-500.0,0.00021917,2]
[358668814,1745356239942,-500.0,0.00021917,2]
[358668815,1745356239952,-500.0,0.00021917,2]
[358668816,1745356239962,-500.0,0.00021917,2]
[358668817,1745356239972,-500.0,0.00021917,2]
[358668818,1745356239982,-504.24827533,0.00021917,2]
[358668819,1745356239992,-500.0,0.00021917,2]
[358668820,1745356240002,-372.49928052,0.00021917,2]
[358668821,1745356240012,-500.0,0.00021917,2]
[358668822,1745356240021,-500.0,0.00021917,2]
[358668823,1745356240031,-500.0,0.00021917,2]
[358668824,1745356240041,-500.0,0.00021917,2]
[358668825,1745356240051,-500.0,0.00021917,2]
[358668826,1745356240061,-500.0,0.00021917,2]
[358668827,1745356240070,-500.0,0.00021917,2]
[358668828,1745356240080,-500.0,0.00021917,2]
[358668829,1745356240090,-500.0,0.00021917,2]
[358668830,1745356240099,-500.0,0.00021917,2]
[358668831,1745356240109,-500.0,0.00021917,2]
[358668832,1745356240119,-178.73601417,0.00021917,2]
[358668833,1745356240128,-500.0,0.00021917,2]
[358668834,1745356240139,-500.0,0.00021917,2]
[358668835,1745356240149,-500.0,0.00021917,2]
[358668836,1745356240159,-504.27884058,0.00021917,2]
[358668837,1745356240169,-500.0,0.00021917,2]
[358668838,1745356240179,-500.0,0.00021917,2]
[358668839,1745356240189,-500.0,0.00021917,2]
[358668840,1745356240198,-500.0,0.00021917,2]
[358668841,1745356240208,-500.0,0.00021917,2]
[358668842,1745356240217,-500.0,0.00021917,2]
[358668843,1745356240226,-538.31127446,0.00021917,2]
[358668844,1745356240236,-500.0,0.00021917,2]
[358668845,1745356240246,-500.0,0.00021917,2]
[358668846,1745356240255,-500.0,0.00021917,2]
[358668847,1745356240264,-500.0,0.00021917,2]
[358668848,1745356240274,-500.0,0.00021917,2]
[358668849,1745356240283,-500.0,0.00021917,2]
[358668850,1745356240292,-521.42136203,0.00021917,2]
[358668851,1745356240302,-500.0,0.00021917,2]
[358668852,1745356240311,-577.60886687,0.00021917,2]
[358668853,1745356240321,-500.0,0.00021917,2]
[358668854,1745356240330,-500.0,0.00021917,2]
[358668855,1745356240340,-500.0,0.00021917,2]
[358668856,1745356240350,-500.0,0.00021917,2]
[358668857,1745356240359,-500.0,0.00021917,2]
[358668858,1745356240369,-500.0,0.00021917,2]
[358668859,1745356240379,-500.0,0.00021917,2]
[358668860,1745356240388,-500.0,0.00021917,2]
[358668861,1745356240398,-175.20279506,0.00021917,2]
[358668862,1745356240407,-500.0,0.00021917,2]
[358668863,1745356240417,-500.0,0.00021917,2]
[358668865,1745356240426,-509.69664392,0.00021917,2]
[358668867,1745356240436,-500.0,0.00021917,2]
[358668868,1745356240446,-500.0,0.00021917,2]
[358668869,1745356240456,-500.0,0.00021917,2]
[358668870,1745356240465,-500.0,0.00021917,2]
[358668871,1745356240474,-167.01157647,0.00021917,2]
[358668872,1745356240484,-500.0,0.00021917,2]
[358668873,1745356240494,-500.0,0.00021917,2]
[358668874,1745356240503,-500.0,0.00021917,2]
[358668875,1745356240513,-500.0,0.00021917,2]
[358668876,1745356240522,-500.0,0.00021917,2]
[358668877,1745356240532,-500.0,0.00021917,2]
[358668878,1745356240542,-388.33784833,0.00021917,2]
[358668879,1745356240551,-500.0,0.00021917,2]
[358668880,1745356240561,-500.0,0.00021917,2]
[358668881,1745356240570,-500.0,0.00021917,2]
[358668882,1745356240579,-500.0,0.00021917,2]
[358668883,1745356240590,-511.86226568,0.00021917,2]
[358668884,1745356240601,-500.0,0.00021917,2]
[358668885,1745356240611,-503.89255439,0.00021917,2]
[358668886,1745356240620,-500.0,0.00021917,2]
[358668887,1745356240629,-500.0,0.00021917,2]
[358668889,1745356240639,-500.0,0.00021917,2]
[358668890,1745356240648,-596.8,0.00021917,2]
[358668891,1745356240658,-500.0,0.00021917,2]
[358668892,1745356240667,-500.0,0.00021917,2]
[358668893,1745356240676,-500.0,0.00021917,2]
[358668894,1745356240686,-500.0,0.00021917,2]
[358668895,1745356240696,-500.0,0.00021917,2]
[358668896,1745356240705,-500.0,0.00021917,2]
[358668897,1745356240715,-500.0,0.00021917,2]
[358668898,1745356240724,-501.58702789,0.00021917,2]
[358668899,1745356240734,-500.0,0.00021917,2]
[358668900,1745356240743,-500.0,0.00021917,2]
[358668901,1745356240753,-500.0,0.00021917,2]
[358668902,1745356240763,-500.0,0.00021917,2]
[358668903,1745356240772,-500.0,0.00021917,2]
[358668904,1745356240785,-500.0,0.00021917,2]
[358668905,1745356240795,-500.0,0.00021917,2]
[358668906,1745356240804,-500.0,0.00021917,2]
[358668907,1745356240815,-500.0,0.00021917,2]
[358668908,1745356240824,-500.0,0.00021917,2]
[358668909,1745356240834,-500.0,0.00021917,2]
[358668910,1745356240843,-500.0,0.00021917,2]
[358668911,1745356240853,-500.0,0.00021917,2]
[358668912,1745356240863,-500.0,0.00021917,2]
[358668913,1745356240874,-500.0,0.00021917,2]
[358668914,1745356240883,-500.0,0.00021917,2]
[358668915,1745356240894,-500.0,0.00021917,2]
[358668916,1745356240904,-500.0,0.00021917,2]
[358668917,1745356240914,-500.0,0.00021917,2]
[358668918,1745356240923,-500.0,0.00021917,2]
[358668919,1745356240933,-500.0,0.00021917,2]
[358668920,1745356240943,-163.73544545,0.00021917,2]
[358668921,1745356240953,-500.0,0.00021917,2]
[358668922,1745356240963,-500.0,0.00021917,2]
[358668923,1745356240973,-571.24756477,0.00021917,2]
[358668924,1745356240982,-500.0,0.00021917,2]
[358668925,1745356240992,-500.0,0.00021917,2]
[358668926,1745356241001,-500.0,0.00021917,2]
[358668927,1745356241011,-540.01948375,0.00021917,2]
[358668928,1745356241020,-500.0,0.00021917,2]
[358668929,1745356241030,-500.0,0.00021917,2]
[358668930,1745356241040,-500.0,0.00021917,2]
[358668931,1745356241049,-500.0,0.00021917,2]
[358668932,1745356241060,-504.35369511,0.00021917,2]
[358668933,1745356241070,-500.0,0.00021917,2]
[358668934,1745356241079,-567.97316963,0.00021917,2]
[358668935,1745356241089,-500.0,0.00021917,2]
[358668936,1745356241099,-500.0,0.00021917,2]
[358668937,1745356241108,-500.0,0.00021917,2]
[358668938,1745356241118,-500.0,0.00021917,2]